fUSD/lending_fUSD_20260617
["ID","MTS","AMOUNT","RATE_DAILY","PERIOD"]
[425325975,1781697041000,-1736.13733511,0.00028973,2]
[425325978,1781697041000,-651.06018135,0.00028973,2]
[425325981,1781697041000,-469.88544907,0.00028973,2]
[425325988,1781697041000,-500.0,0.00029,2]
[425325983,1781697041000,-152.94377145,0.00029,2]
[425325980,1781697041000,-521.51548177,0.00028973,2]
[425325982,1781697041000,-221.5,0.00029,30]
[425325973,1781697041000,-401.99,0.00028964,2]
[425325985,1781697041000,-211.61,0.00029,30]
[425325984,1781697041000,-1315.72,0.00029,30]
[425326000,1781697041000,-259.19,0.00029002,7]
[425325990,1781697041000,-641.0,0.00029,2]
[425326001,1781697041000,-259.19,0.00029002,30]
[425325992,1781697041000,-3283.2,0.00029,30]
[425325993,1781697041000,-224.99,0.00029,2]
[425326002,1781697041000,-259.19,0.00029002,2]
[425325979,1781697041000,-582.69886231,0.00028973,2]
[425325991,1781697041000,-402.07,0.00029,30]
[425325987,1781697041000,-3040.17,0.00029,30]
[425325998,1781697041000,-259.19,0.00029002,30]
[425325989,1781697041000,-1137.45,0.00029,30]
[425325986,1781697041000,-3902.49,0.00029,30]
[425326060,1781697042000,-226.39764101,0.00029129,2]
[425326057,1781697042000,-218.69658761,0.00029129,7]
[425326061,1781697042000,-249.41930434,0.00029129,2]
[425326063,1781697042000,-225.43118096,0.00029129,2]
[425326065,1781697042000,-458.44788521,0.00029129,7]
[425326068,1781697042000,-183.40519541,0.00029138,7]
[425326067,1781697042000,-191.99631741,0.00029138,7]
[425326064,1781697042000,-234.21723798,0.00029129,7]
[425326074,1781697042000,-150.0,0.00029372,2]
[425326059,1781697042000,-165.71292312,0.00029129,7]
[425326073,1781697042000,-2000.0,0.000293,2]
[425326075,1781697042000,-152.05845054,0.00029405,2]
[425326071,1781697042000,-257.79,0.00029228,2]
[425326069,1781697042000,-2328.0,0.0002917,3]
[425326070,1781697042000,-3754.95125807,0.00029216,2]
[425326056,1781697042000,-194.47476297,0.00029129,7]
[425326077,1781697042000,-213.625,0.00029458,23]
[425326078,1781697042000,-160.0,0.0002949,3]
[425326076,1781697042000,-506.0,0.00029446,12]
[425326079,1781697042000,-2380.0,0.0002949,3]
[425326081,1781697042000,-301.56,0.00029508,2]
[425326084,1781697042000,-659.91718464,0.00029698,7]
[425326072,1781697042000,-174.61919142,0.00029267,2]
[425326054,1781697042000,-466.15036694,0.00029129,7]
[425326049,1781697042000,-365.92908231,0.00029129,7]
[425326062,1781697042000,-394.29493644,0.00029129,2]
[425326085,1781697042000,-424.53329977,0.00029698,7]
[425326028,1781697042000,-331.0,0.0002902,2]
[425326036,1781697042000,-439.94478976,0.00029129,7]
[425326037,1781697042000,-212.26664988,0.00029129,7]
[425326038,1781697042000,-436.75342347,0.00029129,7]
[425326030,1781697042000,-331.0,0.0002902,30]
[425326034,1781697042000,-331.0,0.0002902,2]
[425326031,1781697042000,-331.0,0.0002902,2]
[425326033,1781697042000,-331.0,0.0002902,30]
[425326029,1781697042000,-331.0,0.0002902,7]
[425326055,1781697042000,-217.74934537,0.00029129,7]
[425326035,1781697042000,-331.03,0.0002902,7]
[425326039,1781697042000,-249.22485625,0.00029129,7]
[425326042,1781697042000,-245.6203648,0.00029129,7]
[425326044,1781697042000,-233.0234632,0.00029129,7]
[425326046,1781697042000,-225.47550499,0.00029129,7]
[425326041,1781697042000,-150.39539877,0.00029129,7]
[425326048,1781697042000,-232.01294771,0.00029129,7]
[425326043,1781697042000,-279.03101042,0.00029129,7]
[425326047,1781697042000,-225.79632064,0.00029129,7]
[425326045,1781697042000,-430.46908701,0.00029129,7]
[425326052,1781697042000,-214.65472088,0.00029129,7]
[425326032,1781697042000,-331.0,0.0002902,7]
[425326040,1781697042000,-202.69981592,0.00029129,7]
[425326080,1781697042000,-414.81,0.000295,20]
[425326083,1781697042000,-383.99263483,0.00029698,7]
[425326120,1781697042000,-452.79528203,0.00029698,2]
[425326115,1781697042000,-201.37116919,0.00029698,7]
[425326122,1781697042000,-498.83860868,0.00029698,2]
[425326112,1781697042000,-331.42584623,0.00029698,7]
[425326116,1781697042000,-472.79162143,0.00029698,5]
[425326127,1781697042000,-450.86236193,0.00029698,2]
[425326118,1781697042000,-178.6763225,0.00029698,2]
[425326124,1781697042000,-591.44240466,0.00029698,2]
[425326126,1781697042000,-446.36171057,0.00029698,7]
[425326128,1781697042000,-412.98139069,0.00029698,7]
[425326113,1781697042000,-222.28804575,0.00029698,7]
[425326130,1781697042000,-468.43447595,0.00029698,7]
[425326131,1781697042000,-611.26384695,0.00029698,7]
[425326132,1781697042000,-26864.43140295,0.00029703,7]
[425326135,1781697042000,-430.16836778,0.00029707,7]
[425326134,1781697042000,-165.36900404,0.00029707,7]
[425326138,1781697042000,-167.75958112,0.00029707,7]
[425326133,1781697042000,-191.86881566,0.00029707,7]
[425326136,1781697042000,-311.87508903,0.00029707,7]
[425326137,1781697042000,-154.24871349,0.00029707,2]
[425326139,1781697042000,-213.87711138,0.00029707,5]
[425326082,1781697042000,-168.01678516,0.00029645,2]
[425326129,1781697042000,-410.45976411,0.00029698,7]
[425326111,1781697042000,-437.39317523,0.00029698,7]
[425326125,1781697042000,-227.38575425,0.00029698,7]
[425326106,1781697042000,-245.70421563,0.00029698,7]
[425326086,1781697042000,-655.13013521,0.00029698,7]
[425326107,1781697042000,-427.75422277,0.00029698,5]
[425326088,1781697042000,-498.44971249,0.00029698,7]
[425326087,1781697042000,-165.64447569,0.00029698,7]
[425326089,1781697042000,-174.08276585,0.00029698,7]
[425326090,1781697042000,-405.39963185,0.00029698,7]
[425326091,1781697042000,-233.97262355,0.00029698,7]
[425326094,1781697042000,-165.49040856,0.00029698,2]
[425326097,1781697042000,-426.66196277,0.00029698,7]
[425326095,1781697042000,-247.21875952,0.00029698,7]
[425326092,1781697042000,-558.06202084,0.00029698,7]
[425326098,1781697042000,-450.95100998,0.00029698,7]
[425326093,1781697042000,-466.04692639,0.00029698,7]
[425326096,1781697042000,-645.70363052,0.00029698,7]
[425326104,1781697042000,-548.89362347,0.00029698,7]
[425326109,1781697042000,-699.22555041,0.00029698,7]
[425326105,1781697042000,-433.37372534,0.00029698,7]
[425326099,1781697042000,-226.39028697,0.00029698,7]
[425326103,1781697042000,-464.02589543,0.00029698,7]
[425326108,1781697042000,-429.30944176,0.00029698,7]
[425326102,1781697042000,-311.31878383,0.00029698,7]
[425326110,1781697042000,-435.49869073,0.00029698,7]
[425326100,1781697042000,-451.59264128,0.00029698,7]
[425326101,1781697042000,-377.62593374,0.00029698,7]
[425326179,1781697043000,-175.0,0.00029808,2]
[425326166,1781697043000,-69259.6824781,0.00029717,2]
[425326163,1781697043000,-309.57406745,0.00029707,7]
[425326173,1781697043000,-175.0,0.00029808,2]
[425326175,1781697043000,-175.0,0.00029808,2]
[425326177,1781697043000,-175.0,0.00029808,2]
[425326176,1781697043000,-175.0,0.00029808,2]
[425326174,1781697043000,-175.0,0.00029808,2]
[425326180,1781697043000,-175.0,0.00029808,2]
[425326185,1781697043000,-175.0,0.00029808,2]
[425326184,1781697043000,-175.0,0.00029808,2]
[425326181,1781697043000,-175.0,0.00029808,2]
[425326196,1781697043000,-175.0,0.00029808,2]
[425326182,1781697043000,-175.0,0.00029808,2]
[425326178,1781697043000,-175.0,0.00029808,2]
[425326187,1781697043000,-175.0,0.00029808,2]
[425326197,1781697043000,-175.0,0.00029808,2]
[425326186,1781697043000,-175.0,0.00029808,2]
[425326188,1781697043000,-175.0,0.00029808,2]
[425326194,1781697043000,-175.0,0.00029808,2]
[425326189,1781697043000,-175.0,0.00029808,2]
[425326191,1781697043000,-175.0,0.00029808,2]
[425326192,1781697043000,-175.0,0.00029808,2]
[425326190,1781697043000,-175.0,0.00029808,2]
[425326164,1781697043000,-173.21498481,0.00029707,7]
[425326183,1781697043000,-175.0,0.00029808,2]
[425326165,1781697043000,-224.48894714,0.00029707,7]
[425326144,1781697043000,-433.40246734,0.00029707,7]
[425326172,1781697043000,-168.01678516,0.00029807,2]
[425326141,1781697043000,-236.39581071,0.00029707,5]
[425326143,1781697043000,-223.18085528,0.00029707,7]
[425326140,1781697043000,-216.68686267,0.00029707,7]
[425326147,1781697043000,-177.08161766,0.00029707,7]
[425326142,1781697043000,-206.49069534,0.00029707,7]
[425326146,1781697043000,-164.55370188,0.00029707,7]
[425326145,1781697043000,-159.09428572,0.00029707,7]
[425326148,1781697043000,-190.01843339,0.00029707,7]
[425326149,1781697043000,-157.87178721,0.00029707,7]
[425326150,1781697043000,-167.5099656,0.00029707,7]
[425326152,1781697043000,-177.12696982,0.00029707,7]
[425326159,1781697043000,-366.81039081,0.00029707,7]
[425326171,1781697043000,-239.63353567,0.00029788,4]
[425326151,1781697043000,-397.43543546,0.00029707,7]
[425326154,1781697043000,-356.23722584,0.00029707,7]
[425326160,1781697043000,-165.65618183,0.00029707,7]
[425326158,1781697043000,-173.01626787,0.00029707,7]
[425326156,1781697043000,-211.33025571,0.00029707,7]
[425326155,1781697043000,-433.20616417,0.00029707,7]
[425326157,1781697043000,-177.0146178,0.00029707,7]
[425326169,1781697043000,-2328.0,0.00029766,3]
[425326168,1781697043000,-151.0,0.00029722,7]
[425326167,1781697043000,-151.0,0.00029722,7]
[425326170,1781697043000,-160.0,0.00029766,3]
[425326161,1781697043000,-160.69148491,0.00029707,7]
[425326162,1781697043000,-171.91201776,0.00029707,7]
[425326153,1781697043000,-170.17067009,0.00029707,7]
[425326195,1781697043000,-175.0,0.00029808,2]
[425326206,1781697043000,-175.0,0.00029808,2]
[425326198,1781697043000,-248.0,0.00029808,2]
[425326236,1781697043000,-2130.73876201,0.000299,2]
[425326232,1781697043000,-2130.73876201,0.000299,2]
[425326238,1781697043000,-350.0,0.00029925,14]
[425326239,1781697043000,-375.0,0.00029959,30]
[425326242,1781697043000,-212.0,0.00029959,30]
[425326240,1781697043000,-153.0,0.00029959,30]
[425326249,1781697043000,-158.0,0.00029962,30]
[425326241,1781697043000,-153.0,0.00029959,30]
[425326243,1781697043000,-155.0,0.00029959,30]
[425326244,1781697043000,-201.6101292,0.00029959,30]
[425326248,1781697043000,-150.0,0.00029959,30]
[425326247,1781697043000,-150.0,0.00029959,30]
[425326231,1781697043000,-2130.7387622,0.000299,2]
[425326246,1781697043000,-150.0,0.00029959,30]
[425326250,1781697043000,-155.0,0.00029963,30]
[425326253,1781697043000,-268.0,0.00029963,30]
[425326252,1781697043000,-155.0,0.00029963,30]
[425326254,1781697043000,-168.01678516,0.00029968,2]
[425326255,1781697043000,-1256.0,0.00029973,5]
[425326256,1781697043000,-1003.0,0.00029973,5]
[425326251,1781697043000,-151.0,0.00029963,30]
[425326258,1781697043000,-300.0,0.0003,10]
[425326257,1781697043000,-326.0,0.0003,2]
[425326259,1781697043000,-2499.99,0.0003,2]
[425326260,1781697043000,-1376.69366566,0.0003,7]
[425326193,1781697043000,-175.0,0.00029808,2]
[425326245,1781697043000,-150.0,0.00029959,30]
[425326237,1781697043000,-2130.73876201,0.0002991,2]
[425326219,1781697043000,-160.0,0.0002981,3]
[425326234,1781697043000,-2130.73876201,0.000299,2]
[425326200,1781697043000,-175.0,0.00029808,2]
[425326201,1781697043000,-175.0,0.00029808,2]
[425326208,1781697043000,-175.0,0.00029808,2]
[425326204,1781697043000,-175.0,0.00029808,2]
[425326205,1781697043000,-175.0,0.00029808,2]
[425326203,1781697043000,-175.0,0.00029808,2]
[425326202,1781697043000,-175.0,0.00029808,2]
[425326220,1781697043000,-2328.0,0.0002981,3]
[425326221,1781697043000,-711.52,0.00029828,8]
[425326222,1781697043000,-350.0,0.00029829,30]
[425326218,1781697043000,-175.0,0.00029808,2]
[425326224,1781697043000,-164.38859508,0.0002986,14]
[425326214,1781697043000,-175.0,0.00029808,2]
[425326235,1781697043000,-2130.73876201,0.000299,2]
[425326212,1781697043000,-175.0,0.00029808,2]
[425326233,1781697043000,-2130.73876201,0.000299,2]
[425326230,1781697043000,-180.59909494,0.000299,2]
[425326227,1781697043000,-6079.0,0.00029893,2]
[425326223,1781697043000,-413.33019318,0.00029852,2]
[425326229,1781697043000,-200.0,0.000299,10]
[425326228,1781697043000,-151.0,0.000299,7]
[425326199,1781697043000,-175.0,0.00029808,2]
[425326217,1781697043000,-175.0,0.00029808,2]
[425326215,1781697043000,-175.0,0.00029808,2]
[425326225,1781697043000,-156.6359351,0.0002986,2]
[425326210,1781697043000,-175.0,0.00029808,2]
[425326226,1781697043000,-200.0,0.00029874,2]
[425326308,1781697044000,-277.17960336,0.00030129,120]
[425326309,1781697044000,-175235.84756836,0.0003013,7]
[425326299,1781697044000,-500.0,0.00030129,7]
[425326307,1781697044000,-500.0,0.00030129,2]
[425326289,1781697044000,-1107.71,0.00030129,120]
[425326291,1781697044000,-1107.71,0.00030129,120]
[425326293,1781697044000,-500.0,0.00030129,7]
[425326296,1781697044000,-500.0,0.00030129,7]
[425326290,1781697044000,-1107.71,0.00030129,120]
[425326298,1781697044000,-500.0,0.00030129,7]
[425326292,1781697044000,-1107.71,0.00030129,120]
[425326297,1781697044000,-500.0,0.00030129,7]
[425326300,1781697044000,-500.0,0.00030129,2]
[425326304,1781697044000,-500.0,0.00030129,2]
[425326303,1781697044000,-500.0,0.00030129,2]
[425326306,1781697044000,-500.0,0.00030129,2]
[425326301,1781697044000,-500.0,0.00030129,2]
[425326302,1781697044000,-500.0,0.00030129,2]
[425326311,1781697044000,-1002587.20127589,0.0003013,7]
[425326312,1781697044000,-5038.15790217,0.0003013,2]
[425326310,1781697044000,-184.96108371,0.0003013,30]
[425326314,1781697044000,-151.0,0.0003013,7]
[425326318,1781697044000,-151.0,0.0003013,7]
[425326315,1781697044000,-151.0,0.0003013,7]
[425326294,1781697044000,-500.0,0.00030129,7]
[425326305,1781697044000,-500.0,0.00030129,2]
[425326287,1781697044000,-1107.71,0.00030129,120]
[425326284,1781697044000,-500.0,0.00030129,120]
[425326288,1781697044000,-1107.71,0.00030129,120]
[425326261,1781697044000,-1376.69366566,0.0003,7]
[425326262,1781697044000,-2499.98,0.0003,2]
[425326263,1781697044000,-1376.69366567,0.0003,7]
[425326264,1781697044000,-1376.69366567,0.0003,7]
[425326269,1781697044000,-300.0,0.00030109,10]
[425326266,1781697044000,-620.3344957,0.0003003,2]
[425326267,1781697044000,-172.03224579,0.0003003,2]
[425326265,1781697044000,-2500.0,0.0003,2]
[425326271,1781697044000,-601.0,0.0003011,2]
[425326270,1781697044000,-1169.02,0.00030109,7]
[425326268,1781697044000,-5840.46742188,0.0003003,2]
[425326272,1781697044000,-151.0,0.0003011,2]
[425326286,1781697044000,-1107.71,0.00030129,120]
[425326273,1781697044000,-4000.0,0.0003011,3]
[425326320,1781697044000,-152.0,0.0003013,7]
[425326275,1781697044000,-151.0,0.00030127,7]
[425326282,1781697044000,-500.0,0.00030129,120]
[425326278,1781697044000,-151.0,0.00030127,7]
[425326276,1781697044000,-151.0,0.00030127,7]
[425326279,1781697044000,-151.0,0.00030127,7]
[425326280,1781697044000,-151.0,0.00030127,7]
[425326283,1781697044000,-500.0,0.00030129,120]
[425326274,1781697044000,-277.01729798,0.0003012,2]
[425326281,1781697044000,-300.0,0.00030128,10]
[425326285,1781697044000,-238.84,0.00030129,120]
[425326295,1781697044000,-500.0,0.00030129,7]
[425326277,1781697044000,-151.0,0.00030127,7]
[425326319,1781697044000,-200.0,0.0003013,2]
[425326317,1781697044000,-151.0,0.0003013,7]
[425326313,1781697044000,-151.0,0.0003013,7]
[425326348,1781697044000,-150.0,0.00030137,30]
[425326353,1781697044000,-2130.73876201,0.00030163,2]
[425326354,1781697044000,-225.84570254,0.000302,120]
[425326355,1781697044000,-2286.33,0.000302,7]
[425326356,1781697044000,-2814.61,0.000302,7]
[425326352,1781697044000,-537.0,0.00030137,120]
[425326368,1781697044000,-5000.0,0.00030345,2]
[425326358,1781697044000,-2500.0,0.0003025,2]
[425326357,1781697044000,-1727.38,0.000302,7]
[425326361,1781697044000,-250.0,0.00030339,7]
[425326360,1781697044000,-161.9835886,0.00030307,2]
[425326359,1781697044000,-764.07980869,0.00030267,7]
[425326349,1781697044000,-150.0,0.00030137,30]
[425326316,1781697044000,-170.466344,0.0003013,7]
[425326363,1781697044000,-250.0,0.00030339,7]
[425326366,1781697044000,-5000.0,0.00030345,2]
[425326365,1781697044000,-500.0,0.00030344,7]
[425326367,1781697044000,-5000.0,0.00030345,2]
[425326369,1781697044000,-5000.0,0.00030345,2]
[425326373,1781697044000,-278.27,0.00030411,120]
[425326371,1781697044000,-350.0,0.00030374,16]
[425326372,1781697044000,-506.0,0.000304,13]
[425326374,1781697044000,-1766.0,0.00030411,120]
[425326376,1781697044000,-300.0,0.00030411,120]
[425326375,1781697044000,-296.0,0.00030411,120]
[425326370,1781697044000,-273.0,0.00030361,2]
[425326364,1781697044000,-1107.71,0.00030344,120]
[425326346,1781697044000,-278.0,0.00030137,120]
[425326362,1781697044000,-250.0,0.00030339,7]
[425326351,1781697044000,-260.0,0.00030137,30]
[425326350,1781697044000,-150.0,0.00030137,30]
[425326332,1781697044000,-330.112567,0.0003013,7]
[425326322,1781697044000,-151.0,0.0003013,7]
[425326321,1781697044000,-151.0,0.0003013,7]
[425326324,1781697044000,-151.0,0.0003013,7]
[425326325,1781697044000,-151.0,0.0003013,7]
[425326323,1781697044000,-151.0,0.0003013,7]
[425326326,1781697044000,-151.0,0.0003013,7]
[425326328,1781697044000,-286.485749,0.0003013,7]
[425326329,1781697044000,-330.112567,0.0003013,7]
[425326330,1781697044000,-330.112567,0.0003013,7]
[425326331,1781697044000,-330.112567,0.0003013,7]
[425326333,1781697044000,-277.474721,0.0003013,7]
[425326327,1781697044000,-151.0,0.0003013,7]
[425326337,1781697044000,-501.47400689,0.00030135,2]
[425326345,1781697044000,-286.0,0.00030137,30]
[425326335,1781697044000,-277.474721,0.0003013,7]
[425326347,1781697044000,-150.0,0.00030137,30]
[425326342,1781697044000,-1977.0,0.00030137,120]
[425326344,1781697044000,-178.51046928,0.00030137,30]
[425326343,1781697044000,-150.0,0.00030137,2]
[425326341,1781697044000,-416.18534911,0.00030137,7]
[425326340,1781697044000,-208.09267456,0.00030137,7]
[425326339,1781697044000,-1000.0,0.00030137,30]
[425326336,1781697044000,-277.474721,0.0003013,7]
[425326334,1781697044000,-277.474721,0.0003013,7]
[425326338,1781697044000,-1644.23,0.00030137,30]
[425326398,1781697045000,-273.0,0.00030736,2]
[425326401,1781697045000,-1036.94,0.000308,30]
[425326392,1781697045000,-152.0,0.00030637,5]
[425326397,1781697045000,-200.0,0.00030736,2]
[425326395,1781697045000,-2814.61,0.000307,7]
[425326399,1781697045000,-560.78808259,0.00030758,2]
[425326404,1781697045000,-150.0,0.00030841,2]
[425326403,1781697045000,-205.0,0.0003084,30]
[425326402,1781697045000,-350.0,0.00030811,17]
[425326409,1781697045000,-478.0,0.000309,120]
[425326405,1781697045000,-560.78808259,0.00030887,2]
[425326393,1781697045000,-2130.73876201,0.00030669,2]
[425326400,1781697045000,-250.0,0.000308,30]
[425326396,1781697045000,-160.0,0.00030728,3]
[425326380,1781697045000,-10000.0,0.000305,45]
[425326391,1781697045000,-1727.38,0.000306,7]
[425326388,1781697045000,-450.0,0.000305,60]
[425326387,1781697045000,-450.0,0.000305,60]
[425326386,1781697045000,-331.0,0.000305,60]
[425326383,1781697045000,-277.0,0.000305,60]
[425326390,1781697045000,-560.78808259,0.00030532,2]
[425326389,1781697045000,-339.0,0.000305,60]
[425326385,1781697045000,-450.0,0.000305,60]
[425326384,1781697045000,-450.0,0.000305,60]
[425326382,1781697045000,-300.0,0.000305,60]
[425326381,1781697045000,-300.0,0.000305,60]
[425326379,1781697045000,-236.62,0.00030441,10]
[425326378,1781697045000,-200.0,0.00030431,2]
[425326406,1781697045000,-640.2,0.000309,120]
[425326394,1781697045000,-2286.33,0.000307,7]
[425326411,1781697045000,-224.47,0.000309,2]
[425326377,1781697045000,-2130.73876201,0.00030416,2]
[425326408,1781697045000,-600.0,0.000309,120]
[425326443,1781697045000,-1196.93,0.000312,2]
[425326442,1781697045000,-5984.63,0.000312,2]
[425326444,1781697045000,-235.45749275,0.000312,2]
[425326441,1781697045000,-2130.73876201,0.00031176,2]
[425326433,1781697045000,-150.0,0.00031068,30]
[425326435,1781697045000,-560.78808259,0.00031086,2]
[425326436,1781697045000,-172.03224579,0.00031087,2]
[425326429,1781697045000,-67577.0,0.00031,2]
[425326430,1781697045000,-1133.95,0.00031012,7]
[425326428,1781697045000,-1727.38,0.00031,7]
[425326439,1781697045000,-1036.94,0.00031125,30]
[425326438,1781697045000,-273.0,0.00031111,2]
[425326431,1781697045000,-210.0,0.00031028,60]
[425326426,1781697045000,-557.20339425,0.00031,3]
[425326437,1781697045000,-1659.99,0.00031095,7]
[425326410,1781697045000,-153.0,0.000309,120]
[425326420,1781697045000,-155.0,0.00030959,30]
[425326427,1781697045000,-160.0,0.00031,120]
[425326407,1781697045000,-600.0,0.000309,120]
[425326412,1781697045000,-2000.0,0.000309,2]
[425326413,1781697045000,-599.60298507,0.0003091,2]
[425326416,1781697045000,-375.0,0.00030959,30]
[425326415,1781697045000,-2130.73876201,0.00030923,2]
[425326414,1781697045000,-670.58624095,0.0003091,2]
[425326417,1781697045000,-153.0,0.00030959,30]
[425326425,1781697045000,-268.0,0.00030963,30]
[425326423,1781697045000,-151.0,0.00030963,30]
[425326424,1781697045000,-155.0,0.00030963,30]
[425326422,1781697045000,-155.0,0.00030963,30]
[425326419,1781697045000,-212.0,0.00030959,30]
[425326421,1781697045000,-158.0,0.00030962,30]
[425326418,1781697045000,-153.0,0.00030959,30]
[425326472,1781697046000,-608.22014675,0.0001993,2]
[425326471,1781697046000,-153.0,0.00016238,2]
[425326474,1781697046000,-547.0163882,0.00025967,2]
[425326475,1781697046000,-37.48921542,0.000312,2]
[425326473,1781697046000,-181.78422137,0.00025967,2]
[425326484,1781697047000,-350.0,0.00031234,19]
[425326478,1781697047000,-216.53239744,0.000312,2]
[425326476,1781697047000,-156.0,0.0002,2]
[425326480,1781697047000,-2286.33,0.000312,7]
[425326488,1781697047000,-1727.38,0.000314,7]
[425326481,1781697047000,-2814.61,0.000312,7]
[425326479,1781697047000,-946.73089439,0.000312,2]
[425326482,1781697047000,-560.78808259,0.00031206,2]
[425326487,1781697047000,-506.0,0.00031354,14]
[425326486,1781697047000,-152.05845054,0.00031303,2]
[425326477,1781697047000,-420.0,0.00028959,10]
[425326483,1781697047000,-560.78808259,0.00031226,2]
[425326489,1781697047000,-978.99412378,0.00031429,2]
[425326490,1781697047000,-502.99997,0.00018,2]
[425326493,1781697047000,-728.80060957,0.00027,2]
[425326492,1781697047000,-608.22014675,0.00021825,2]
[425326491,1781697047000,-239.63927881,0.000204,2]
[425326494,1781697047000,-2070.9344905,0.00027397,10]
[425326495,1781697047000,-440.20000001,0.00027397,10]
[425326498,1781697047000,-4003.88,0.000286,30]
[425326496,1781697047000,-239.63927881,0.000206,2]
[425326485,1781697047000,-203.51,0.000313,14]
[425326497,1781697047000,-13690.56550949,0.00027397,10]
[425326533,1781697048000,-173.0,0.00031507,120]
[425326538,1781697048000,-2000.0,0.00031563,2]
[425326529,1781697048000,-300.0,0.00031507,120]
[425326531,1781697048000,-150.0,0.00031507,120]
[425326536,1781697048000,-2000.0,0.00031563,2]
[425326534,1781697048000,-154.77518102,0.00031544,30]
[425326537,1781697048000,-2000.0,0.00031563,2]
[425326539,1781697048000,-2000.0,0.00031563,2]
[425326541,1781697048000,-2000.0,0.00031563,2]
[425326532,1781697048000,-240.0,0.00031507,120]
[425326535,1781697048000,-698.86296938,0.00031553,2]
[425326540,1781697048000,-2000.0,0.00031563,2]
[425326546,1781697048000,-414.81,0.000316,15]
[425326545,1781697048000,-957.0,0.00031563,2]
[425326547,1781697048000,-620.33449568,0.00031615,2]
[425326543,1781697048000,-1339.0,0.00031563,2]
[425326550,1781697048000,-272.0,0.00031644,60]
[425326530,1781697048000,-240.0,0.00031507,120]
[425326544,1781697048000,-1050.0,0.00031563,2]
[425326542,1781697048000,-2000.0,0.00031563,2]
[425326548,1781697048000,-170.1205,0.00031635,30]
[425326549,1781697048000,-152.5629,0.00031644,2]
[425326552,1781697048000,-2000.0,0.00031644,2]
[425326554,1781697048000,-650.0,0.00031644,2]
[425326555,1781697048000,-650.0,0.00031644,2]
[425326556,1781697048000,-650.0,0.00031644,2]
[425326551,1781697048000,-2000.0,0.00031644,2]
[425326528,1781697048000,-300.0,0.00031507,120]
[425326522,1781697048000,-501.47400689,0.00031504,2]
[425326523,1781697048000,-800.0,0.00031507,120]
[425326558,1781697048000,-650.0,0.00031644,2]
[425326500,1781697048000,-4003.88,0.00028644,7]
[425326504,1781697048000,-262.02,0.0002869,7]
[425326499,1781697048000,-1605.12,0.00028613,30]
[425326501,1781697048000,-262.02,0.00028652,30]
[425326502,1781697048000,-1605.12,0.00028656,7]
[425326503,1781697048000,-4003.88,0.00028688,2]
[425326506,1781697048000,-4003.88,0.00028733,30]
[425326507,1781697048000,-262.02,0.00028768,30]
[425326515,1781697048000,-150.0,0.00031456,3]
[425326510,1781697048000,-4003.88,0.00028822,2]
[425326514,1781697048000,-1036.94,0.0003145,30]
[425326525,1781697048000,-600.0,0.00031507,120]
[425326511,1781697048000,-151.0,0.0003013,2]
[425326512,1781697048000,-524.0,0.0003091,30]
[425326508,1781697048000,-4003.88,0.00028777,7]
[425326509,1781697048000,-262.02,0.00028806,7]
[425326517,1781697048000,-151.0,0.00031458,7]
[425326516,1781697048000,-560.78808259,0.00031456,2]
[425326527,1781697048000,-347.0,0.00031507,120]
[425326520,1781697048000,-201.27172869,0.000315,2]